[Event "Titled Tuesday Blitz October 12 2021"]
[White "Le, Tuan Minh"]
[Black "Ozdemir, Serhan Berat"]
[WhiteFideId "12401153"]
[BlackFideId "6374611"]
[WhiteElo "2450"]
[BlackElo "1920"]
[Result "1-0"]
[Round "01"]
[TimeControl "180+1"]
[Date "2021.10.12"]
[WhiteClock "0:00:19"]
[BlackClock "0:00:03"]

1. d4 {[%clk 0:03:00]}  Nf6 {[%clk 0:02:59]} 2. Nf3 {[%clk 0:02:59]}  e6 {[%clk 0:02:58]} 3. Bf4 {[%clk 0:02:55]}  c5 {[%clk 0:02:49]} 4. c3 {[%clk 0:02:52]}  Qb6 {[%clk 0:02:43]} 5. Qc2 {[%clk 0:02:52]}  Nc6 {[%clk 0:02:33]} 6. e3 {[%clk 0:02:51]}  d5 {[%clk 0:02:23]} 7. Nbd2 {[%clk 0:02:49]}  Be7 {[%clk 0:02:23]} 8. Bd3 {[%clk 0:02:48]}  O-O {[%clk 0:02:21]} 9. O-O {[%clk 0:02:45]}  Bd7 {[%clk 0:02:14]} 10. Ne5 {[%clk 0:02:45]}  h6 {[%clk 0:02:05]} 11. Ndf3 {[%clk 0:02:39]}  Rac8 {[%clk 0:01:59]} 12. Qe2 {[%clk 0:02:35]}  a6 {[%clk 0:01:51]} 13. Nxd7 {[%clk 0:02:26]}  Nxd7 {[%clk 0:01:52]} 14. Rfd1 {[%clk 0:02:24]}  Nf6 {[%clk 0:01:44]} 15. h3 {[%clk 0:02:22]}  Rfd8 {[%clk 0:01:39]} 16. Ne5 {[%clk 0:02:19]}  Nxe5 {[%clk 0:01:39]} 17. Bxe5 {[%clk 0:02:18]}  Nd7 {[%clk 0:01:32]} 18. Bg3 {[%clk 0:02:17]}  Bd6 {[%clk 0:01:21]} 19. Bh4 {[%clk 0:02:14]}  Re8 {[%clk 0:01:21]} 20. Rac1 {[%clk 0:02:05]}  e5 {[%clk 0:01:16]} 21. Bf5 {[%clk 0:02:04]}  Rc7 {[%clk 0:01:09]} 22. Qg4 {[%clk 0:01:54]}  Qc6 {[%clk 0:00:53]} 23. e4 {[%clk 0:01:24]}  exd4 {[%clk 0:00:44]} 24. cxd4 {[%clk 0:01:20]}  dxe4 {[%clk 0:00:41]} 25. dxc5 {[%clk 0:01:11]}  Nxc5 {[%clk 0:00:24]} 26. b4 {[%clk 0:01:10]}  e3 {[%clk 0:00:15]} 27. fxe3 {[%clk 0:01:01]}  b6 {[%clk 0:00:15]} 28. bxc5 {[%clk 0:00:59]}  Bxc5 {[%clk 0:00:15]} 29. Kh1 {[%clk 0:00:57]}  Qb7 {[%clk 0:00:01]} 30. e4 {[%clk 0:00:35]}  Bf8 {[%clk 0:00:01]} 31. Bg3 {[%clk 0:00:29]}  Rxc1 {[%clk 0:00:01]} 32. Rxc1 {[%clk 0:00:29]}  Qe7 {[%clk 0:00:01]} 33. e5 {[%clk 0:00:29]}  Qa3 {[%clk 0:00:01]} 34. Rc2 {[%clk 0:00:24]}  g6 {[%clk 0:00:01]} 35. Bxg6 {[%clk 0:00:23]}  h5 {[%clk 0:00:02]} 36. Bxh5+ {[%clk 0:00:21]}  Bg7 {[%clk 0:00:03]} 37. Rf2 {[%clk 0:00:19]}  Qc1+ {[%clk 0:00:01]} 38. Kh2 {[%clk 0:00:19]}  Rxe5 {[%clk 0:00:02]} 39. Bxf7+ {[%clk 0:00:19]}  Kh8 {[%clk 0:00:02]} 40. Qh4+ {[%clk 0:00:19]}  Bh6 {[%clk 0:00:03]} 41. Bxe5+ {[%clk 0:00:19]} 1-0


[Site "https://www.chess.com"]

[Event "Titled Tuesday Blitz October 12 2021"]
[White "Moroni, Luca Jr"]
[Black "Pacheco Lugo, Alejandro Jose"]
[WhiteFideId "865834"]
[BlackFideId "3903745"]
[WhiteElo "2491"]
[BlackElo "2125"]
[Result "1-0"]
[Round "01"]
[TimeControl "180+1"]
[Date "2021.10.12"]
[WhiteClock "0:00:34"]
[BlackClock "0:00:15"]

1. d4 {[%clk 0:03:00]}  Nf6 {[%clk 0:02:59]} 2. c4 {[%clk 0:03:00]}  e6 {[%clk 0:02:59]} 3. Nc3 {[%clk 0:03:00]}  Bb4 {[%clk 0:02:59]} 4. Nf3 {[%clk 0:03:00]}  b6 {[%clk 0:02:59]} 5. Qb3 {[%clk 0:03:01]}  c5 {[%clk 0:02:57]} 6. dxc5 {[%clk 0:03:01]}  bxc5 {[%clk 0:02:48]} 7. g3 {[%clk 0:03:01]}  Bb7 {[%clk 0:02:47]} 8. Bg2 {[%clk 0:03:01]}  O-O {[%clk 0:02:39]} 9. a3 {[%clk 0:03:01]}  Bxc3+ {[%clk 0:02:38]} 10. Qxc3 {[%clk 0:03:02]}  Ne4 {[%clk 0:02:25]} 11. Qb3 {[%clk 0:02:39]}  Qb6 {[%clk 0:02:19]} 12. Qxb6 {[%clk 0:02:35]}  axb6 {[%clk 0:02:20]} 13. O-O {[%clk 0:02:35]}  d5 {[%clk 0:02:14]} 14. cxd5 {[%clk 0:02:26]}  exd5 {[%clk 0:02:15]} 15. Ne5 {[%clk 0:02:18]}  Re8 {[%clk 0:02:14]} 16. Nd3 {[%clk 0:02:18]}  Nc6 {[%clk 0:02:10]} 17. Be3 {[%clk 0:02:10]}  Na5 {[%clk 0:02:04]} 18. Rad1 {[%clk 0:02:06]}  d4 {[%clk 0:01:43]} 19. Bc1 {[%clk 0:02:01]}  Rad8 {[%clk 0:01:41]} 20. Bf4 {[%clk 0:01:37]}  Re7 {[%clk 0:01:16]} 21. b4 {[%clk 0:01:25]}  Nc4 {[%clk 0:01:15]} 22. Bxe4 {[%clk 0:01:12]}  Bxe4 {[%clk 0:01:10]} 23. bxc5 {[%clk 0:01:12]}  bxc5 {[%clk 0:00:58]} 24. Nxc5 {[%clk 0:01:11]}  Bc2 {[%clk 0:00:58]} 25. Rde1 {[%clk 0:00:58]}  Nxa3 {[%clk 0:00:55]} 26. Ra1 {[%clk 0:00:48]}  Nc4 {[%clk 0:00:53]} 27. Rfe1 {[%clk 0:00:47]}  f6 {[%clk 0:00:30]} 28. Rac1 {[%clk 0:00:46]}  d3 {[%clk 0:00:31]} 29. exd3 {[%clk 0:00:42]}  Rxe1+ {[%clk 0:00:31]} 30. Rxe1 {[%clk 0:00:42]}  Bxd3 {[%clk 0:00:31]} 31. Rd1 {[%clk 0:00:40]}  Rd5 {[%clk 0:00:31]} 32. Nxd3 {[%clk 0:00:39]}  g5 {[%clk 0:00:25]} 33. Bc1 {[%clk 0:00:39]}  Ne5 {[%clk 0:00:24]} 34. Nb2 {[%clk 0:00:35]}  Nf3+ {[%clk 0:00:15]} 35. Kg2 {[%clk 0:00:34]} 1-0


[Site "https://www.chess.com"]

[Event "Titled Tuesday Blitz October 12 2021"]
[White "Nakamura, Hikaru"]
[Black "Slizhevsky, Alexander"]
[WhiteFideId "2016192"]
[BlackFideId "4152050"]
[WhiteElo "2884"]
[BlackElo "2380"]
[Result "1-0"]
[Round "01"]
[TimeControl "180+1"]
[Date "2021.10.12"]
[WhiteClock "0:01:08"]
[BlackClock "0:00:28"]

1. Nf3 {[%clk 0:03:00]}  Nf6 {[%clk 0:02:59]} 2. b3 {[%clk 0:02:56]}  g6 {[%clk 0:02:59]} 3. Bb2 {[%clk 0:02:57]}  Bg7 {[%clk 0:02:59]} 4. e3 {[%clk 0:02:53]}  d6 {[%clk 0:02:58]} 5. d4 {[%clk 0:02:53]}  O-O {[%clk 0:02:57]} 6. Be2 {[%clk 0:02:53]}  Nbd7 {[%clk 0:02:54]} 7. O-O {[%clk 0:02:54]}  e5 {[%clk 0:02:53]} 8. dxe5 {[%clk 0:02:55]}  Ng4 {[%clk 0:02:53]} 9. c4 {[%clk 0:02:54]}  Ngxe5 {[%clk 0:02:51]} 10. Nxe5 {[%clk 0:02:54]}  Nxe5 {[%clk 0:02:52]} 11. Nc3 {[%clk 0:02:55]}  Be6 {[%clk 0:02:44]} 12. Qd2 {[%clk 0:02:49]}  Qh4 {[%clk 0:02:37]} 13. Nd5 {[%clk 0:02:37]}  Bxd5 {[%clk 0:02:25]} 14. cxd5 {[%clk 0:02:37]}  Ng4 {[%clk 0:02:23]} 15. Bxg4 {[%clk 0:02:34]}  Bxb2 {[%clk 0:02:22]} 16. Qxb2 {[%clk 0:02:35]}  Qxg4 {[%clk 0:02:22]} 17. Rac1 {[%clk 0:02:35]}  Rac8 {[%clk 0:02:16]} 18. Rc4 {[%clk 0:02:34]}  Qg5 {[%clk 0:02:10]} 19. Qd4 {[%clk 0:02:33]}  Rfe8 {[%clk 0:02:06]} 20. Rfc1 {[%clk 0:02:29]}  Re7 {[%clk 0:02:06]} 21. Qxa7 {[%clk 0:02:14]}  Qxd5 {[%clk 0:02:03]} 22. Rd4 {[%clk 0:02:06]}  Qb5 {[%clk 0:01:41]} 23. Rxd6 {[%clk 0:02:02]}  cxd6 {[%clk 0:00:57]} 24. Rxc8+ {[%clk 0:01:59]}  Kg7 {[%clk 0:00:58]} 25. Qd4+ {[%clk 0:01:58]}  Qe5 {[%clk 0:00:57]} 26. Rc4 {[%clk 0:01:34]}  b5 {[%clk 0:00:49]} 27. Rb4 {[%clk 0:01:16]}  Rc7 {[%clk 0:00:47]} 28. g3 {[%clk 0:01:10]}  Qxd4 {[%clk 0:00:41]} 29. Rxd4 {[%clk 0:01:11]}  Rc2 {[%clk 0:00:33]} 30. Rxd6 {[%clk 0:01:10]}  Rxa2 {[%clk 0:00:32]} 31. Rd5 {[%clk 0:01:11]}  h5 {[%clk 0:00:28]} 32. h4 {[%clk 0:01:08]} 1-0


[Site "https://www.chess.com"]

[Event "Titled Tuesday Blitz October 12 2021"]
[White "Perez Ponsa, Federico"]
[Black "harlem4brew"]
[WhiteFideId "117927"]
[WhiteElo "2672"]
[BlackElo "2484"]
[Result "1-0"]
[Round "01"]
[TimeControl "180+1"]
[Date "2021.10.12"]
[WhiteClock "0:00:07"]
[BlackClock "0:00:06"]

1. e4 {[%clk 0:02:56]}  c5 {[%clk 0:02:57]} 2. Nf3 {[%clk 0:02:55]}  Nc6 {[%clk 0:02:55]} 3. Bb5 {[%clk 0:02:52]}  g6 {[%clk 0:02:53]} 4. O-O {[%clk 0:02:52]}  Bg7 {[%clk 0:02:49]} 5. Re1 {[%clk 0:02:52]}  a6 {[%clk 0:02:45]} 6. Bxc6 {[%clk 0:02:49]}  bxc6 {[%clk 0:02:44]} 7. c3 {[%clk 0:02:49]}  d6 {[%clk 0:02:43]} 8. d4 {[%clk 0:02:49]}  cxd4 {[%clk 0:02:42]} 9. cxd4 {[%clk 0:02:49]}  Bg4 {[%clk 0:02:41]} 10. Be3 {[%clk 0:02:40]}  Nf6 {[%clk 0:02:38]} 11. Nbd2 {[%clk 0:02:39]}  O-O {[%clk 0:02:35]} 12. Rc1 {[%clk 0:02:37]}  Rb8 {[%clk 0:02:30]} 13. b3 {[%clk 0:02:36]}  Qd7 {[%clk 0:02:18]} 14. h3 {[%clk 0:02:32]}  Bxf3 {[%clk 0:02:15]} 15. Qxf3 {[%clk 0:02:33]}  Rfc8 {[%clk 0:02:14]} 16. Nc4 {[%clk 0:01:48]}  Rb5 {[%clk 0:02:04]} 17. d5 {[%clk 0:01:38]}  cxd5 {[%clk 0:01:33]} 18. Nb6 {[%clk 0:01:37]}  Rxc1 {[%clk 0:01:33]} 19. Rxc1 {[%clk 0:01:32]}  Rxb6 {[%clk 0:01:32]} 20. Bxb6 {[%clk 0:01:30]}  Nxe4 {[%clk 0:01:32]} 21. Qd3 {[%clk 0:01:24]}  Qb7 {[%clk 0:01:20]} 22. Be3 {[%clk 0:01:12]}  e6 {[%clk 0:01:10]} 23. Qc2 {[%clk 0:01:10]}  Nc5 {[%clk 0:01:00]} 24. Bxc5 {[%clk 0:00:52]}  dxc5 {[%clk 0:01:01]} 25. Qxc5 {[%clk 0:00:53]}  Bf8 {[%clk 0:01:01]} 26. Qc8 {[%clk 0:00:46]}  Qb5 {[%clk 0:00:33]} 27. Qd8 {[%clk 0:00:43]}  Kg7 {[%clk 0:00:29]} 28. Rc8 {[%clk 0:00:36]}  Qb4 {[%clk 0:00:27]} 29. g3 {[%clk 0:00:36]}  Qe1+ {[%clk 0:00:25]} 30. Kg2 {[%clk 0:00:35]}  Qe4+ {[%clk 0:00:25]} 31. Kh2 {[%clk 0:00:36]}  Qb4 {[%clk 0:00:26]} 32. Rb8 {[%clk 0:00:26]}  Qc5 {[%clk 0:00:24]} 33. Kg2 {[%clk 0:00:27]}  d4 {[%clk 0:00:17]} 34. Rc8 {[%clk 0:00:24]}  Qb4 {[%clk 0:00:17]} 35. Rc7 {[%clk 0:00:16]}  Bd6 {[%clk 0:00:11]} 36. Rd7 {[%clk 0:00:14]}  Be5 {[%clk 0:00:12]} 37. Qe8 {[%clk 0:00:14]}  Qf8 {[%clk 0:00:11]} 38. Qxf8+ {[%clk 0:00:14]}  Kxf8 {[%clk 0:00:11]} 39. f4 {[%clk 0:00:14]}  Bf6 {[%clk 0:00:11]} 40. Kf3 {[%clk 0:00:14]}  h5 {[%clk 0:00:11]} 41. g4 {[%clk 0:00:14]}  hxg4+ {[%clk 0:00:10]} 42. hxg4 {[%clk 0:00:14]}  a5 {[%clk 0:00:11]} 43. Ra7 {[%clk 0:00:14]}  Bd8 {[%clk 0:00:10]} 44. Ra8 {[%clk 0:00:14]}  Ke7 {[%clk 0:00:11]} 45. Ke4 {[%clk 0:00:14]}  Bb6 {[%clk 0:00:11]} 46. g5 {[%clk 0:00:14]}  Kd6 {[%clk 0:00:09]} 47. Rf8 {[%clk 0:00:11]}  Ke7 {[%clk 0:00:09]} 48. Rb8 {[%clk 0:00:11]}  Bc5 {[%clk 0:00:08]} 49. Ra8 {[%clk 0:00:09]}  Bb6 {[%clk 0:00:08]} 50. Ra6 {[%clk 0:00:09]}  Bc7 {[%clk 0:00:05]} 51. a4 {[%clk 0:00:07]}  Kd8 {[%clk 0:00:05]} 52. Ra8+ {[%clk 0:00:05]}  Kd7 {[%clk 0:00:05]} 53. Ra7 {[%clk 0:00:06]}  Kd8 {[%clk 0:00:05]} 54. Ra6 {[%clk 0:00:06]}  Kd7 {[%clk 0:00:05]} 55. Ra8 {[%clk 0:00:06]}  Ke7 {[%clk 0:00:04]} 56. Kxd4 {[%clk 0:00:03]}  Bxf4 {[%clk 0:00:04]} 57. Rxa5 {[%clk 0:00:04]}  Kf8 {[%clk 0:00:05]} 58. Ke4 {[%clk 0:00:04]}  Bd6 {[%clk 0:00:05]} 59. Rb5 {[%clk 0:00:05]}  Ke7 {[%clk 0:00:05]} 60. a5 {[%clk 0:00:06]}  f5+ {[%clk 0:00:06]} 61. gxf6+ {[%clk 0:00:06]}  Kxf6 {[%clk 0:00:06]} 62. a6 {[%clk 0:00:07]}  Bc5 {[%clk 0:00:06]} 63. Rxc5 {[%clk 0:00:07]} 1-0


[Site "https://www.chess.com"]

[Event "Titled Tuesday Blitz October 12 2021"]
[White "Rozhkov, Viacheslav"]
[Black "Holt, Conrad"]
[WhiteFideId "4181484"]
[BlackFideId "2034387"]
[WhiteElo "2324"]
[BlackElo "2586"]
[Result "1-0"]
[Round "01"]
[TimeControl "180+1"]
[Date "2021.10.12"]
[WhiteClock "0:00:13"]
[BlackClock "0:00:17"]

1. e4 {[%clk 0:02:58]}  e6 {[%clk 0:02:55]} 2. d4 {[%clk 0:02:57]}  d5 {[%clk 0:02:55]} 3. e5 {[%clk 0:02:57]}  c5 {[%clk 0:02:55]} 4. c3 {[%clk 0:02:57]}  Nc6 {[%clk 0:02:54]} 5. Nf3 {[%clk 0:02:57]}  Bd7 {[%clk 0:02:50]} 6. a3 {[%clk 0:02:57]}  f6 {[%clk 0:02:49]} 7. Bd3 {[%clk 0:02:56]}  fxe5 {[%clk 0:02:46]} 8. Nxe5 {[%clk 0:02:56]}  Nf6 {[%clk 0:02:40]} 9. O-O {[%clk 0:02:55]}  cxd4 {[%clk 0:02:31]} 10. cxd4 {[%clk 0:02:55]}  Nxd4 {[%clk 0:02:31]} 11. Ng6 {[%clk 0:02:44]}  hxg6 {[%clk 0:02:13]} 12. Bxg6+ {[%clk 0:02:43]}  Ke7 {[%clk 0:02:13]} 13. Qxd4 {[%clk 0:02:42]}  Qb6 {[%clk 0:02:10]} 14. Be3 {[%clk 0:02:09]}  Qxd4 {[%clk 0:02:05]} 15. Bxd4 {[%clk 0:02:10]}  Kd8 {[%clk 0:01:48]} 16. Nd2 {[%clk 0:01:44]}  Bd6 {[%clk 0:01:42]} 17. Nf3 {[%clk 0:01:44]}  Be8 {[%clk 0:01:19]} 18. Bd3 {[%clk 0:01:39]}  Bh5 {[%clk 0:01:19]} 19. Ne5 {[%clk 0:01:39]}  Nd7 {[%clk 0:01:14]} 20. Rfe1 {[%clk 0:01:29]}  Nxe5 {[%clk 0:01:06]} 21. Bxe5 {[%clk 0:01:28]}  Bxe5 {[%clk 0:01:07]} 22. Rxe5 {[%clk 0:01:28]}  Bf7 {[%clk 0:01:07]} 23. f4 {[%clk 0:01:21]}  Ke7 {[%clk 0:00:57]} 24. f5 {[%clk 0:01:16]}  Kf6 {[%clk 0:00:57]} 25. Rae1 {[%clk 0:01:12]}  Rae8 {[%clk 0:00:52]} 26. g4 {[%clk 0:01:06]}  g5 {[%clk 0:00:24]} 27. fxg6 {[%clk 0:00:54]}  Bxg6 {[%clk 0:00:24]} 28. Bxg6 {[%clk 0:00:45]}  Kxg6 {[%clk 0:00:24]} 29. Rxe6+ {[%clk 0:00:45]}  Rxe6 {[%clk 0:00:24]} 30. Rxe6+ {[%clk 0:00:46]}  Kg5 {[%clk 0:00:24]} 31. Re5+ {[%clk 0:00:41]}  Kxg4 {[%clk 0:00:24]} 32. Rxd5 {[%clk 0:00:41]}  Rh7 {[%clk 0:00:20]} 33. Kg2 {[%clk 0:00:39]}  Rc7 {[%clk 0:00:20]} 34. Rd4+ {[%clk 0:00:37]}  Kf5 {[%clk 0:00:20]} 35. Rd2 {[%clk 0:00:28]}  Ke4 {[%clk 0:00:19]} 36. h4 {[%clk 0:00:26]}  Ke3 {[%clk 0:00:18]} 37. Rf2 {[%clk 0:00:20]}  Rg7+ {[%clk 0:00:18]} 38. Kf1 {[%clk 0:00:21]}  Rh7 {[%clk 0:00:18]} 39. Rh2 {[%clk 0:00:20]}  Kf3 {[%clk 0:00:19]} 40. h5 {[%clk 0:00:20]}  Kg3 {[%clk 0:00:18]} 41. Rh1 {[%clk 0:00:20]}  Kg4 {[%clk 0:00:18]} 42. Ke2 {[%clk 0:00:18]}  Rxh5 {[%clk 0:00:17]} 43. Rxh5 {[%clk 0:00:18]}  Kxh5 {[%clk 0:00:18]} 44. Kd3 {[%clk 0:00:19]}  Kg6 {[%clk 0:00:17]} 45. Kd4 {[%clk 0:00:18]}  Kf6 {[%clk 0:00:17]} 46. Kc5 {[%clk 0:00:16]}  Ke6 {[%clk 0:00:17]} 47. b4 {[%clk 0:00:17]}  Ke5 {[%clk 0:00:17]} 48. b5 {[%clk 0:00:16]}  b6+ {[%clk 0:00:17]} 49. Kc6 {[%clk 0:00:13]}  Kd4 {[%clk 0:00:17]} 50. Kb7 {[%clk 0:00:13]}  Kc4 {[%clk 0:00:18]} 51. a4 {[%clk 0:00:12]}  Kb4 {[%clk 0:00:17]} 52. Kxa7 {[%clk 0:00:12]}  Kxa4 {[%clk 0:00:17]} 53. Kxb6 {[%clk 0:00:13]} 1-0


[Site "https://www.chess.com"]

[Event "Titled Tuesday Blitz October 12 2021"]
[White "Silvestre, Christian"]
[Black "Yoo, Christopher Woojin"]
[WhiteFideId "30956269"]
[BlackFideId "30909694"]
[WhiteElo "2479"]
[BlackElo "2105"]
[Result "0-1"]
[Round "01"]
[TimeControl "180+1"]
[Date "2021.10.12"]
[WhiteClock "0:00:58"]
[BlackClock "0:00:04"]

1. Nf3 {[%clk 0:02:59]}  Nf6 {[%clk 0:02:50]} 2. d4 {[%clk 0:02:59]}  d5 {[%clk 0:02:45]} 3. Bf4 {[%clk 0:02:59]}  Bf5 {[%clk 0:02:44]} 4. e3 {[%clk 0:02:59]}  e6 {[%clk 0:02:44]} 5. Bd3 {[%clk 0:02:59]}  Ne4 {[%clk 0:02:43]} 6. h3 {[%clk 0:02:56]}  Bd6 {[%clk 0:02:36]} 7. Ne5 {[%clk 0:02:56]}  Nd7 {[%clk 0:02:31]} 8. Nxd7 {[%clk 0:02:55]}  Qxd7 {[%clk 0:02:30]} 9. Bxd6 {[%clk 0:02:54]}  Qxd6 {[%clk 0:02:29]} 10. Nd2 {[%clk 0:02:55]}  O-O {[%clk 0:02:24]} 11. Nxe4 {[%clk 0:02:54]}  dxe4 {[%clk 0:02:24]} 12. Be2 {[%clk 0:02:52]}  c5 {[%clk 0:02:24]} 13. c3 {[%clk 0:02:51]}  cxd4 {[%clk 0:01:54]} 14. Qxd4 {[%clk 0:02:52]}  Qe7 {[%clk 0:01:51]} 15. O-O-O {[%clk 0:02:42]}  Rfd8 {[%clk 0:01:50]} 16. Qe5 {[%clk 0:02:38]}  f6 {[%clk 0:01:47]} 17. Qb5 {[%clk 0:02:35]}  Qc7 {[%clk 0:01:26]} 18. Rxd8+ {[%clk 0:02:30]}  Rxd8 {[%clk 0:01:26]} 19. Rd1 {[%clk 0:02:30]}  Rxd1+ {[%clk 0:01:25]} 20. Bxd1 {[%clk 0:02:31]}  Bg6 {[%clk 0:01:18]} 21. g3 {[%clk 0:02:18]}  a6 {[%clk 0:01:16]} 22. Qb4 {[%clk 0:02:10]}  f5 {[%clk 0:01:09]} 23. Bb3 {[%clk 0:02:06]}  Bf7 {[%clk 0:01:07]} 24. h4 {[%clk 0:02:05]}  g6 {[%clk 0:01:03]} 25. Qd4 {[%clk 0:02:03]}  e5 {[%clk 0:01:00]} 26. Bxf7+ {[%clk 0:02:01]}  Kxf7 {[%clk 0:01:01]} 27. Qd5+ {[%clk 0:02:01]}  Kf6 {[%clk 0:01:01]} 28. Qg8 {[%clk 0:01:57]}  Qd7 {[%clk 0:00:53]} 29. Qh8+ {[%clk 0:01:55]}  Ke6 {[%clk 0:00:53]} 30. Qg8+ {[%clk 0:01:52]}  Kd6 {[%clk 0:00:53]} 31. Qb8+ {[%clk 0:01:51]}  Qc7 {[%clk 0:00:48]} 32. Qf8+ {[%clk 0:01:50]}  Qe7 {[%clk 0:00:43]} 33. Qb8+ {[%clk 0:01:48]}  Kc6 {[%clk 0:00:43]} 34. Kc2 {[%clk 0:01:43]}  Qe6 {[%clk 0:00:33]} 35. b3 {[%clk 0:01:38]}  Qd5 {[%clk 0:00:32]} 36. Qe8+ {[%clk 0:01:35]}  Kb6 {[%clk 0:00:32]} 37. Qc8 {[%clk 0:01:23]}  Qd3+ {[%clk 0:00:31]} 38. Kb2 {[%clk 0:01:23]}  Qd2+ {[%clk 0:00:30]} 39. Ka3 {[%clk 0:01:23]}  Qxf2 {[%clk 0:00:25]} 40. b4 {[%clk 0:01:08]}  Qxe3 {[%clk 0:00:24]} 41. Ka4 {[%clk 0:01:06]}  Ka7 {[%clk 0:00:23]} 42. c4 {[%clk 0:01:06]}  Qd4 {[%clk 0:00:12]} 43. c5 {[%clk 0:01:02]}  Qd5 {[%clk 0:00:13]} 44. Ka3 {[%clk 0:00:58]}  e3 {[%clk 0:00:12]} 45. Qc7 {[%clk 0:00:57]}  Qe6 {[%clk 0:00:06]} 46. c6 {[%clk 0:00:55]}  Qxc6 {[%clk 0:00:06]} 47. Qxe5 {[%clk 0:00:56]}  Qb6 {[%clk 0:00:01]} 48. Qd5 {[%clk 0:00:56]}  Qc6 {[%clk 0:00:01]} 49. Qe6 {[%clk 0:00:57]}  Qxe6 {[%clk 0:00:02]} 50. b5 {[%clk 0:00:57]}  axb5 {[%clk 0:00:02]} 51. Kb4 {[%clk 0:00:58]}  e2 {[%clk 0:00:03]} 52. Ka5 {[%clk 0:00:59]}  e1=Q+ {[%clk 0:00:04]} 53. Kxb5 {[%clk 0:00:58]}  Qc6# {[%clk 0:00:04]} 0-1


[Site "https://www.chess.com"]

[Event "Titled Tuesday Blitz October 12 2021"]
[White "Stromboli, Ettore"]
[Black "Lazavik, Denis"]
[WhiteFideId "813761"]
[BlackFideId "13515110"]
[WhiteElo "2414"]
[BlackElo "2436"]
[Result "0-1"]
[Round "01"]
[TimeControl "180+1"]
[Date "2021.10.12"]
[WhiteClock "0:00:32"]
[BlackClock "0:00:21"]

1. e4 {[%clk 0:02:51]}  c5 {[%clk 0:02:58]} 2. Nf3 {[%clk 0:02:51]}  e6 {[%clk 0:02:57]} 3. d4 {[%clk 0:02:52]}  cxd4 {[%clk 0:02:57]} 4. Nxd4 {[%clk 0:02:52]}  Nc6 {[%clk 0:02:57]} 5. c4 {[%clk 0:02:52]}  Qb6 {[%clk 0:02:53]} 6. Nc2 {[%clk 0:02:48]}  Nf6 {[%clk 0:02:47]} 7. Nc3 {[%clk 0:02:47]}  Bc5 {[%clk 0:02:46]} 8. Qe2 {[%clk 0:02:38]}  O-O {[%clk 0:02:29]} 9. g3 {[%clk 0:02:36]}  Nd4 {[%clk 0:02:19]} 10. Nxd4 {[%clk 0:02:35]}  Bxd4 {[%clk 0:02:19]} 11. Bg2 {[%clk 0:02:29]}  d6 {[%clk 0:02:17]} 12. O-O {[%clk 0:02:28]}  Bd7 {[%clk 0:02:06]} 13. Rd1 {[%clk 0:02:27]}  Rac8 {[%clk 0:02:02]} 14. Be3 {[%clk 0:02:11]}  Bxe3 {[%clk 0:01:58]} 15. Qxe3 {[%clk 0:02:12]}  Qxe3 {[%clk 0:01:27]} 16. fxe3 {[%clk 0:02:13]}  Rxc4 {[%clk 0:01:27]} 17. Rxd6 {[%clk 0:02:11]}  Bc6 {[%clk 0:01:26]} 18. e5 {[%clk 0:02:12]}  Ng4 {[%clk 0:01:24]} 19. Bxc6 {[%clk 0:02:11]}  bxc6 {[%clk 0:01:21]} 20. Rd7 {[%clk 0:02:09]}  a5 {[%clk 0:01:00]} 21. Ra7 {[%clk 0:01:54]}  Rc5 {[%clk 0:00:59]} 22. Rd1 {[%clk 0:01:51]}  Nxe3 {[%clk 0:00:55]} 23. Rd6 {[%clk 0:01:49]}  Nc4 {[%clk 0:00:53]} 24. Rdd7 {[%clk 0:01:43]}  Nxe5 {[%clk 0:00:52]} 25. Rdc7 {[%clk 0:01:44]}  h6 {[%clk 0:00:47]} 26. Na4 {[%clk 0:01:38]}  Rd5 {[%clk 0:00:43]} 27. Nc3 {[%clk 0:01:36]}  Rd2 {[%clk 0:00:41]} 28. Rxa5 {[%clk 0:01:35]}  Nf3+ {[%clk 0:00:42]} 29. Kf1 {[%clk 0:01:34]}  Nxh2+ {[%clk 0:00:43]} 30. Ke1 {[%clk 0:01:34]}  Nf3+ {[%clk 0:00:43]} 31. Kf1 {[%clk 0:01:34]}  Rxb2 {[%clk 0:00:44]} 32. Rxc6 {[%clk 0:01:30]}  Rd8 {[%clk 0:00:44]} 33. Rb5 {[%clk 0:01:23]}  Rc2 {[%clk 0:00:36]} 34. Rb1 {[%clk 0:00:47]}  Rd3 {[%clk 0:00:33]} 35. Rb3 {[%clk 0:00:37]}  Rdd2 {[%clk 0:00:23]} 36. Ne4 {[%clk 0:00:32]}  Rd1# {[%clk 0:00:21]} 0-1


[Site "https://www.chess.com"]

[Event "Titled Tuesday Blitz October 12 2021"]
[White "Vokhidov, Shamsiddin"]
[Black "Nguyen Hong Nhung"]
[WhiteFideId "14204223"]
[BlackFideId "12412201"]
[WhiteElo "2616"]
[BlackElo "1661"]
[Result "1-0"]
[Round "01"]
[TimeControl "180+1"]
[Date "2021.10.12"]
[WhiteClock "0:01:30"]
[BlackClock "0:00:14"]

1. e4 {[%clk 0:03:00]}  c5 {[%clk 0:03:00]} 2. Nf3 {[%clk 0:03:00]}  e6 {[%clk 0:03:00]} 3. d4 {[%clk 0:03:00]}  cxd4 {[%clk 0:03:00]} 4. Nxd4 {[%clk 0:03:01]}  Nc6 {[%clk 0:03:01]} 5. Nc3 {[%clk 0:03:01]}  Qc7 {[%clk 0:03:01]} 6. Be3 {[%clk 0:03:02]}  a6 {[%clk 0:03:00]} 7. Qf3 {[%clk 0:03:02]}  b5 {[%clk 0:02:48]} 8. Nxc6 {[%clk 0:03:01]}  Qxc6 {[%clk 0:02:47]} 9. a3 {[%clk 0:02:55]}  Bb7 {[%clk 0:02:43]} 10. Qg3 {[%clk 0:02:54]}  Nf6 {[%clk 0:02:25]} 11. Bd3 {[%clk 0:02:51]}  b4 {[%clk 0:02:12]} 12. axb4 {[%clk 0:02:49]}  Bxb4 {[%clk 0:02:13]} 13. Bd2 {[%clk 0:02:14]}  O-O {[%clk 0:02:05]} 14. O-O {[%clk 0:02:13]}  d6 {[%clk 0:01:40]} 15. Rfe1 {[%clk 0:02:03]}  Bxc3 {[%clk 0:01:27]} 16. Bxc3 {[%clk 0:01:59]}  e5 {[%clk 0:01:25]} 17. f4 {[%clk 0:01:58]}  Nh5 {[%clk 0:01:24]} 18. Qg4 {[%clk 0:01:51]}  Nxf4 {[%clk 0:01:23]} 19. Rf1 {[%clk 0:01:51]}  Ng6 {[%clk 0:01:12]} 20. h4 {[%clk 0:01:51]}  Ne7 {[%clk 0:00:54]} 21. h5 {[%clk 0:01:50]}  h6 {[%clk 0:00:51]} 22. Rf2 {[%clk 0:01:50]}  Bc8 {[%clk 0:00:47]} 23. Qg3 {[%clk 0:01:50]}  f5 {[%clk 0:00:42]} 24. exf5 {[%clk 0:01:49]}  Bxf5 {[%clk 0:00:36]} 25. Be2 {[%clk 0:01:44]}  Rab8 {[%clk 0:00:33]} 26. Rxa6 {[%clk 0:01:42]}  Qc5 {[%clk 0:00:32]} 27. Ra5 {[%clk 0:01:38]}  Qb6 {[%clk 0:00:31]} 28. Rb5 {[%clk 0:01:38]}  Qc6 {[%clk 0:00:30]} 29. Rxb8 {[%clk 0:01:37]}  Rxb8 {[%clk 0:00:31]} 30. Bf3 {[%clk 0:01:35]}  Qc5 {[%clk 0:00:29]} 31. Kh2 {[%clk 0:01:34]}  Be6 {[%clk 0:00:27]} 32. Be4 {[%clk 0:01:33]}  Bf7 {[%clk 0:00:20]} 33. Bh7+ {[%clk 0:01:31]}  Kxh7 {[%clk 0:00:19]} 34. Rxf7 {[%clk 0:01:32]}  Rg8 {[%clk 0:00:18]} 35. Rxe7 {[%clk 0:01:31]}  Qc4 {[%clk 0:00:17]} 36. Bd2 {[%clk 0:01:30]}  Qe2 {[%clk 0:00:17]} 37. Qg6+ {[%clk 0:01:29]}  Kh8 {[%clk 0:00:17]} 38. Bxh6 {[%clk 0:01:30]}  Qf2 {[%clk 0:00:14]} 39. Bxg7+ {[%clk 0:01:29]}  Rxg7 {[%clk 0:00:14]} 40. Qxg7# {[%clk 0:01:30]} 1-0


[Site "https://www.chess.com"]